bitfinex/quotes_BTCUSD_20251224
["timestamp","ask_amount","ask_price","bid_price","bid_amount"]
[1766552045144,0.02298959,87187.0,87176.0,0.01147104]
[1766552045342,0.01146973,87186.0,87176.0,0.01147104]
[1766552045797,0.01146986,87185.0,87175.0,0.01147117]
[1766552045938,0.01146973,87186.0,87176.0,0.01147104]
[1766552046142,0.01146986,87185.0,87176.0,0.01147104]
[1766552046341,0.01146973,87186.0,87176.0,0.01147104]
[1766552048756,0.01146973,87186.0,87177.0,0.0015]
[1766552048997,0.01146986,87185.0,87177.0,0.0015]
[1766552049847,0.01146973,87186.0,87177.0,0.0015]
[1766552050421,0.01152,87185.0,87178.0,0.00362]
[1766552053468,4.44e-06,87191.0,87185.0,0.00055]
[1766552053636,0.06881942,87191.0,87185.0,0.00065714]
[1766552053830,0.06881942,87191.0,87185.0,0.00010714]
[1766552054259,0.01146933,87189.0,87185.0,0.00010714]
[1766552054508,0.06881942,87191.0,87185.0,0.00010714]
[1766552054694,0.01147351,87191.0,87185.0,0.00010714]
[1766552056460,0.0114692,87190.0,87185.0,0.00010714]
[1766552057418,0.01146946,87188.0,87185.0,0.00010714]
[1766552057609,0.01146933,87189.0,87185.0,0.00010714]
[1766552057989,0.0114692,87190.0,87185.0,0.00010714]
[1766552058194,0.01147351,87191.0,87185.0,0.00010714]
[1766552058985,0.0114692,87190.0,87185.0,0.00010714]
[1766552059336,0.0001,87195.0,87185.0,0.00010714]
[1766552059553,0.01146881,87193.0,87190.0,0.00055]
[1766552059673,3.23e-06,87195.0,87190.0,0.00055]
[1766552060096,0.01146867,87194.0,87185.0,0.50074319]
[1766552060503,0.01146881,87193.0,87185.0,0.50074319]
[1766552061246,0.01146867,87194.0,87185.0,0.50074319]
[1766552061607,0.01146881,87193.0,87185.0,0.00010714]
[1766552061875,0.01146907,87191.0,87185.0,0.00010714]
[1766552062047,0.01146946,87188.0,87185.0,1.4e-07]
[1766552062288,0.01146933,87189.0,87185.0,1.4e-07]
[1766552062760,0.0114692,87190.0,87185.0,1.4e-07]
[1766552063106,0.01146933,87189.0,87185.0,1.4e-07]
[1766552063356,0.28694907,87191.0,87185.0,1.4e-07]
[1766552063754,0.0114692,87190.0,87185.0,1.4e-07]
[1766552063961,0.01146881,87193.0,87185.0,1.4e-07]
[1766552064721,0.01146867,87194.0,87185.0,1.4e-07]
[1766552065327,0.01147177,87195.0,87185.0,0.01147]
[1766552065549,0.01146894,87192.0,87185.0,1.4e-07]
[1766552066085,0.01146907,87191.0,87185.0,1.4e-07]
[1766552066310,0.0114692,87190.0,87185.0,1.4e-07]
[1766552066519,0.01146933,87189.0,87184.0,0.00026936]
[1766552066723,0.00010657,87189.0,87184.0,0.00026936]
[1766552068098,5.7e-07,87189.0,87184.0,0.00026936]
[1766552071997,5.7e-07,87189.0,87184.0,0.01173935]
[1766552072224,5.7e-07,87189.0,87184.0,0.00026936]
[1766552073654,5.7e-07,87189.0,87184.0,0.01173935]
[1766552073855,5.7e-07,87189.0,87184.0,0.00026936]
[1766552081090,5.7e-07,87189.0,87184.0,0.01173935]
[1766552082557,5.7e-07,87189.0,87184.0,0.00026936]
[1766552083154,5.7e-07,87189.0,87184.0,0.01173935]
[1766552083358,5.7e-07,87189.0,87184.0,0.00026936]
[1766552083751,5.7e-07,87189.0,87184.0,0.01173935]
[1766552085205,5.7e-07,87189.0,87185.0,0.01146986]
[1766552085609,5.7e-07,87189.0,87184.0,0.01173935]
[1766552086363,5.7e-07,87189.0,87184.0,0.00026936]
[1766552086993,0.01146946,87188.0,87184.0,0.00026936]
[1766552087433,0.01146959,87187.0,87184.0,0.00026936]
[1766552087777,0.01146959,87187.0,87184.0,3.6e-07]
[1766552087956,0.01146946,87188.0,87184.0,3.6e-07]
[1766552088808,0.01146959,87187.0,87184.0,3.6e-07]
[1766552089021,0.0114699,87189.0,87184.0,3.6e-07]
[1766552089228,0.01146959,87187.0,87184.0,3.6e-07]
[1766552089362,0.32445959,87187.0,87184.0,3.6e-07]
[1766552089566,5.7e-07,87189.0,87184.0,3.6e-07]
[1766552090125,0.0114699,87189.0,87184.0,3.6e-07]
[1766552090362,5.7e-07,87189.0,87184.0,3.6e-07]
[1766552091343,5.7e-07,87189.0,87184.0,0.01147035]
[1766552091723,5.7e-07,87189.0,87184.0,3.6e-07]
[1766552092656,5.7e-07,87189.0,87184.0,0.01147035]
[1766552093571,5.7e-07,87189.0,87185.0,0.01146986]
[1766552094992,5.7e-07,87189.0,87186.0,0.01146973]
[1766552097325,5.7e-07,87189.0,87186.0,0.06881788]
[1766552097558,5.7e-07,87189.0,87186.0,0.01146973]
[1766552098304,5.7e-07,87189.0,87185.0,0.01146986]
[1766552098528,5.7e-07,87189.0,87184.0,3.6e-07]
[1766552098733,5.7e-07,87189.0,87184.0,0.01147035]
[1766552099141,5.7e-07,87189.0,87185.0,0.01146986]
[1766552099341,5.7e-07,87189.0,87184.0,3.6e-07]
[1766552100182,0.31849057,87189.0,87184.0,3.6e-07]
[1766552100806,5.7e-07,87189.0,87184.0,3.6e-07]
[1766552101747,5.7e-07,87189.0,87183.0,0.01147012]
[1766552102601,5.7e-07,87189.0,87182.0,0.01147025]
[1766552103599,0.0114699,87189.0,87180.0,0.01148]
[1766552103801,0.000279,87182.0,87180.0,0.01148]
[1766552104162,0.01146946,87188.0,87180.0,0.01148]
[1766552104367,0.0114699,87189.0,87180.0,0.01148]
[1766552105033,0.0114699,87189.0,87180.0,0.02295052]
[1766552105524,0.0114699,87189.0,87180.0,0.01148]
[1766552106550,5.7e-07,87189.0,87180.0,0.02295052]
[1766552107033,0.0114699,87189.0,87180.0,0.02295052]
[1766552107446,0.31849,87188.0,87180.0,0.02295052]
[1766552109301,0.31849,87188.0,87184.0,0.01146999]
[1766552109455,0.31849,87188.0,87185.0,0.01146986]
[1766552109638,0.31822,87188.0,87184.0,0.01146999]
[1766552110219,0.31822,87188.0,87183.0,0.01147012]
[1766552110622,0.31822,87188.0,87184.0,0.01146999]
[1766552110987,0.31822,87188.0,87183.0,0.01147012]
[1766552111193,0.31822,87188.0,87182.0,0.01147025]
[1766552111808,5.7e-07,87189.0,87184.0,0.01146999]
[1766552112001,5.7e-07,87189.0,87185.0,0.01146986]
[1766552112628,5.7e-07,87189.0,87184.0,0.01146999]
[1766552112864,5.7e-07,87189.0,87183.0,0.06882023]
[1766552113146,5.7e-07,87189.0,87184.0,0.01146999]
[1766552113577,5.7e-07,87189.0,87185.0,0.01146986]
[1766552113989,5.7e-07,87189.0,87184.0,0.01146999]
[1766552114201,0.000549,87184.0,87177.0,0.057354]
[1766552114396,0.000549,87184.0,87176.0,0.01147104]
[1766552114607,0.3299599,87189.0,87178.0,0.01147078]
[1766552114831,0.32995946,87188.0,87178.0,0.01147078]
[1766552115034,0.32995959,87187.0,87177.0,0.01147091]
[1766552116311,0.01146973,87186.0,87177.0,0.01147091]
[1766552116660,0.319039,87177.0,87171.0,0.01148]
[1766552117074,0.31849,87177.0,87171.0,0.01148]
[1766552118308,0.31849,87177.0,87168.0,0.01147209]
[1766552120049,0.31849,87177.0,87165.0,0.06884236]
[1766552120050,0.01147117,87175.0,87165.0,0.00983095]
[1766552120256,0.000549,87168.0,87160.0,0.02295315]
[1766552120731,0.31849,87169.0,87160.0,0.02295315]
[1766552120921,0.31849,87169.0,87161.0,0.01147302]
[1766552121135,0.31849,87169.0,87160.0,0.02295315]
[1766552121314,0.32996196,87169.0,87160.0,0.02295315]
[1766552121680,0.01147209,87168.0,87160.0,0.01148]
[1766552121948,0.32996223,87167.0,87163.0,8.1e-07]
[1766552123173,0.01147236,87166.0,87163.0,8.1e-07]
[1766552123343,0.32996236,87166.0,87163.0,8.1e-07]
[1766552125551,0.32997,87165.0,87163.0,8.1e-07]
[1766552125863,0.32996288,87162.0,87158.0,1.87e-06]
[1766552126017,0.31849,87160.0,87158.0,1.87e-06]
[1766552127067,0.31854736,87160.0,87158.0,1.87e-06]
[1766552130177,0.31829636,87160.0,87158.0,1.87e-06]
[1766552130591,0.34508196,87169.0,87160.0,0.01147315]
[1766552130791,0.34508196,87169.0,87160.0,0.01183067]
[1766552130995,0.34508196,87169.0,87162.0,0.01147288]
[1766552130996,0.33361,87169.0,87162.0,0.01147288]
[1766552131202,0.33361,87169.0,87161.0,0.01147302]
[1766552131203,0.01148,87168.0,87161.0,0.01147302]
[1766552131400,0.01148,87168.0,87162.0,0.01147288]
[1766552131812,0.01093,87168.0,87164.0,0.01147262]
[1766552132087,0.01093,87168.0,87165.0,0.01147249]
[1766552132288,0.01093,87168.0,87164.0,0.01147262]
[1766552133037,0.01093,87168.0,87165.0,0.01147249]
[1766552133615,0.01148,87169.0,87166.0,0.01147236]
[1766552133820,0.01148,87171.0,87167.0,0.01147223]
[1766552134029,0.01148,87174.0,87170.0,0.01147183]
[1766552134405,0.01148,87174.0,87169.0,0.01147196]
[1766552134612,0.01148,87174.0,87168.0,0.01147209]
[1766552134807,0.02295078,87178.0,87168.0,0.01147209]
[1766552135014,0.01148,87178.0,87169.0,0.01147196]
[1766552135444,0.000549,87169.0,87164.0,0.01147262]
[1766552135678,0.01147144,87173.0,87164.0,0.01147262]
[1766552135883,0.35981131,87174.0,87164.0,0.01147262]
[1766552136891,0.34834,87174.0,87165.0,0.02295249]
[1766552137303,0.34834,87174.0,87168.0,0.01147209]
[1766552137680,0.34834,87174.0,87167.0,0.01147223]
[1766552138082,0.34834,87174.0,87168.0,0.01147209]
[1766552138666,0.34834,87174.0,87169.0,0.01147196]
[1766552138866,0.34834,87174.0,87170.0,0.01147183]
[1766552139069,0.34834,87174.0,87169.0,0.01147196]
[1766552139273,0.34834,87174.0,87170.0,0.01147183]
[1766552139405,0.34806651,87174.0,87170.0,0.01147183]
[1766552139616,0.34806651,87174.0,87169.0,0.01147196]
[1766552139822,0.34806651,87174.0,87167.0,0.01147223]
[1766552141226,0.34806651,87174.0,87166.0,0.01147236]
[1766552142031,0.34806651,87174.0,87165.0,0.02295249]
[1766552142257,0.34806651,87174.0,87165.0,0.01148]
[1766552142456,0.01147157,87172.0,87165.0,0.01148]
[1766552143220,0.01147144,87173.0,87165.0,0.01148]
[1766552145003,0.35953782,87174.0,87165.0,0.01148]
[1766552145376,0.01147144,87173.0,87165.0,0.01148]
[1766552145597,0.01147157,87172.0,87165.0,0.01148]
[1766552146344,0.35981144,87173.0,87165.0,0.01148]
[1766552146554,0.01147157,87172.0,87165.0,0.01148]
[1766552147094,0.01147157,87172.0,87163.0,0.01147275]
[1766552147095,0.01147183,87170.0,87162.0,0.01148]
[1766552147366,0.01147196,87169.0,87162.0,0.01148]
[1766552147786,0.34834,87168.0,87162.0,0.01148]
[1766552147983,0.40570054,87168.0,87162.0,0.01148]
[1766552148305,0.40570054,87168.0,87160.0,0.00035752]
[1766552148306,0.01147262,87164.0,87160.0,0.00035752]
[1766552148505,0.35981262,87164.0,87160.0,0.00035752]
[1766552148660,0.01147275,87163.0,87160.0,0.00035752]
[1766552148863,0.35981262,87164.0,87160.0,0.00035752]
[1766552149061,0.01147275,87163.0,87160.0,0.00035752]
[1766552149858,0.35981262,87164.0,87160.0,0.00035752]
[1766552151343,0.01147275,87163.0,87160.0,0.00035752]
[1766552151528,0.35981262,87164.0,87160.0,0.00035752]
[1766552151845,0.01147275,87163.0,87160.0,0.00035752]
[1766552152063,0.35981262,87164.0,87160.0,0.00035752]
[1766552152965,0.01147275,87163.0,87160.0,0.00035752]
[1766552157570,0.35981262,87164.0,87160.0,0.00035752]
[1766552157772,0.01147275,87163.0,87160.0,0.00035752]
[1766552159095,0.35981262,87164.0,87160.0,0.00035752]
[1766552160701,0.01147275,87163.0,87160.0,0.00035752]
[1766552160956,0.35981262,87164.0,87160.0,0.00035752]
[1766552161161,0.34834,87164.0,87160.0,0.00035752]
[1766552161361,0.02295196,87169.0,87160.0,0.01183067]
[1766552161562,0.01147209,87168.0,87160.0,0.00035752]
[1766552162744,0.01147223,87167.0,87160.0,0.00035752]
[1766552162978,0.01147236,87166.0,87160.0,0.00035752]
[1766552163346,0.01147262,87164.0,87160.0,0.00035752]
[1766552163608,0.01147249,87165.0,87160.0,0.00035752]
[1766552164731,0.01147236,87166.0,87160.0,0.00035752]
[1766552166873,0.01147223,87167.0,87160.0,0.00035752]
[1766552167261,0.01147249,87165.0,87160.0,0.00035752]
[1766552167628,0.01147236,87166.0,87160.0,0.00035752]
[1766552167830,0.01147223,87167.0,87160.0,0.00035752]
[1766552168090,0.01147236,87166.0,87160.0,0.00035752]
[1766552168231,0.01147249,87165.0,87160.0,0.00035752]
[1766552169086,0.01147262,87164.0,87160.0,0.00035752]
[1766552169395,0.01147275,87163.0,87160.0,0.00035752]
[1766552169597,0.06883662,87163.0,87160.0,0.00035752]
[1766552170215,0.01147275,87163.0,87160.0,0.00035752]
[1766552170416,0.01147275,87163.0,87160.0,5.2e-07]
[1766552171545,0.06883695,87163.0,87160.0,5.2e-07]
[1766552171774,0.01147275,87163.0,87160.0,5.2e-07]
[1766552172312,0.0688366,87163.0,87160.0,5.2e-07]
[1766552172983,0.05736504,87162.0,87160.0,5.2e-07]
[1766552173137,0.0688366,87163.0,87160.0,5.2e-07]
[1766552173759,0.01147275,87163.0,87160.0,5.2e-07]
[1766552174784,0.01147262,87164.0,87160.0,5.2e-07]
[1766552175191,0.35703,87165.0,87160.0,5.2e-07]
[1766552176069,0.41439257,87165.0,87160.0,5.2e-07]
[1766552176411,0.01147262,87164.0,87160.0,5.2e-07]
[1766552176830,0.06883683,87163.0,87160.0,5.2e-07]
[1766552177351,0.01147275,87163.0,87160.0,5.2e-07]
[1766552178448,0.01147302,87161.0,87158.0,1.87e-06]
[1766552178687,0.36886051,87161.0,87158.0,1.87e-06]
[1766552179786,0.05736576,87160.0,87158.0,1.87e-06]
[1766552179988,0.36886051,87161.0,87158.0,1.87e-06]
[1766552180608,0.35703049,87161.0,87158.0,1.87e-06]
[1766552180820,0.00035749,87161.0,87158.0,1.87e-06]
[1766552181671,0.01183051,87161.0,87158.0,1.87e-06]
[1766552182004,0.05736576,87160.0,87158.0,1.87e-06]
[1766552182616,0.01183051,87161.0,87158.0,1.87e-06]
[1766552183011,0.00035749,87161.0,87158.0,1.87e-06]
[1766552189779,0.01147223,87167.0,87158.0,0.01147528]
[1766552190110,0.01147223,87167.0,87158.0,0.00010787]
[1766552190860,0.01147209,87168.0,87158.0,0.00010787]
[1766552191088,0.01147223,87167.0,87158.0,0.01158128]
[1766552191786,0.01147236,87166.0,87158.0,0.00010787]
[1766552192181,0.01147223,87167.0,87158.0,0.01158128]
[1766552192382,0.01147236,87166.0,87158.0,0.00010787]
[1766552192988,0.01147249,87165.0,87158.0,0.00010787]
[1766552193400,0.01147236,87166.0,87158.0,0.00010787]
[1766552193610,0.01147249,87165.0,87158.0,0.00010787]
[1766552193833,0.34824,87162.0,87158.0,0.00010787]
[1766552196769,0.35971288,87162.0,87158.0,0.00010787]
[1766552197184,0.34824,87162.0,87158.0,0.00010787]
[1766552197589,0.35971288,87162.0,87158.0,0.00010787]
[1766552197795,0.35971288,87162.0,87158.0,8.7e-07]
[1766552198217,0.01147302,87161.0,87158.0,8.7e-07]
[1766552199163,0.06883815,87161.0,87158.0,8.7e-07]
[1766552199296,0.35971288,87162.0,87158.0,8.7e-07]
[1766552201154,0.34824,87162.0,87158.0,8.7e-07]
[1766552201568,0.40448832,87157.0,87155.0,1.86e-06]
[1766552201736,0.34712,87157.0,87155.0,1.86e-06]
[1766552202176,0.37007499,87157.0,87155.0,1.86e-06]
[1766552204250,0.05736273,87165.0,87155.0,1.86e-06]
[1766552204444,0.01147183,87170.0,87159.0,0.01147328]
[1766552204652,0.01147183,87170.0,87157.0,0.05747422]
[1766552204653,0.0344401,87165.0,87157.0,0.05747422]
[1766552204857,0.01148,87167.0,87155.0,0.01147567]
[1766552204858,0.01148,87167.0,87155.0,1.86e-06]
[1766552205058,0.01147249,87165.0,87155.0,1.86e-06]
[1766552205458,0.01147249,87165.0,87155.0,0.01147567]
[1766552205689,0.01147249,87165.0,87156.0,0.01147367]
[1766552207028,0.34712,87165.0,87155.0,1.86e-06]
[1766552207246,0.000992,87156.0,87155.0,1.86e-06]
[1766552207418,0.000992,87156.0,87147.0,1e-08]
[1766552207419,0.01147446,87150.0,87147.0,1e-08]
[1766552207626,0.0573735,87149.0,87147.0,1e-08]
[1766552208054,0.0572665,87149.0,87147.0,0.00025189]
[1766552208275,0.05737366,87148.0,87147.0,0.00025189]
[1766552208734,0.06884738,87150.0,87147.0,0.00025189]
[1766552208934,0.06884738,87150.0,87136.0,0.0001]
[1766552208935,0.01147499,87146.0,87136.0,0.0001]
[1766552209146,0.00025099,87147.0,87136.0,0.0001]
[1766552209147,0.01147433,87151.0,87141.0,0.01147565]
[1766552209359,0.02295367,87156.0,87144.0,0.01147525]
[1766552209974,0.0803222,87156.0,87145.0,0.01147512]
[1766552210181,0.35859381,87155.0,87146.0,0.01147499]
[1766552210375,0.01147394,87154.0,87145.0,0.01147512]
[1766552210608,0.35859381,87155.0,87146.0,0.01147499]
[1766552210827,0.34712,87153.0,87143.0,0.01147539]
[1766552211032,0.34712,87153.0,87144.0,0.01147525]
[1766552211033,0.35859407,87153.0,87144.0,0.01147525]
[1766552211264,0.35859407,87153.0,87143.0,0.01147539]
[1766552211265,0.0114742,87152.0,87143.0,0.01147539]
[1766552211506,0.35859407,87153.0,87143.0,0.01147539]
[1766552211697,0.35859407,87153.0,87144.0,0.01147525]
[1766552211698,0.34712,87153.0,87144.0,0.01147525]
[1766552211855,0.35859407,87153.0,87143.0,0.01147539]
[1766552212040,0.0114742,87152.0,87141.0,0.01147565]
[1766552212796,0.01147433,87151.0,87140.0,0.51225497]
[1766552213121,0.01147473,87148.0,87140.0,0.01148]
[1766552213585,0.01147499,87146.0,87140.0,0.01148]
[1766552214345,0.01147512,87145.0,87140.0,0.01148]
[1766552216821,0.01147499,87146.0,87140.0,0.01148]
[1766552218230,0.01147552,87142.0,87139.0,0.00025192]
[1766552218436,0.000251,87139.0,87133.0,1e-08]
[1766552218668,0.05738419,87132.0,87131.0,1e-08]
[1766552218871,0.42680419,87132.0,87131.0,1e-08]
[1766552219071,0.42680419,87132.0,87128.0,0.01148]
[1766552219072,0.38089697,87131.0,87128.0,1e-08]
[1766552219884,0.36942,87131.0,87128.0,1e-08]
[1766552220213,0.01147657,87134.0,87128.0,1e-08]
[1766552220375,0.0114767,87133.0,87128.0,1e-08]
[1766552220577,0.01147657,87134.0,87128.0,1e-08]
[1766552221000,0.38089618,87137.0,87128.0,1e-08]
[1766552221235,0.0114767,87133.0,87128.0,1e-08]
[1766552221783,0.36942,87130.0,87128.0,1e-08]
[1766552222898,0.01147907,87115.0,87102.0,0.01148079]
[1766552223026,0.01147907,87115.0,87106.0,0.01148026]
[1766552223244,0.01147881,87117.0,87107.0,0.01148013]
[1766552223432,0.36942,87118.0,87109.0,0.01147987]
[1766552223754,0.36942,87118.0,87110.0,0.01167973]
[1766552224074,0.36942,87118.0,87111.0,0.0114796]
[1766552224275,0.0688703,87121.0,87117.0,0.00069273]
[1766552224573,0.01147855,87119.0,87110.0,0.0002]
[1766552224791,0.01147868,87118.0,87110.0,0.0002]
[1766552224955,0.01147881,87117.0,87110.0,0.0002]
[1766552225155,0.01147868,87118.0,87111.0,0.01148]
[1766552225355,0.01147921,87114.0,87111.0,0.01148]
[1766552225886,0.38089921,87114.0,87110.0,0.0002]
[1766552226082,0.38089934,87113.0,87106.0,0.01148]
[1766552226658,0.01147947,87112.0,87106.0,0.01148]
[1766552227136,0.38089934,87113.0,87105.0,0.0002]
[1766552227359,0.01147947,87112.0,87105.0,0.0002]
[1766552227557,0.36942,87113.0,87107.0,0.01148013]
[1766552227773,0.36942,87113.0,87112.0,0.000549]
[1766552227973,0.36942,87113.0,87105.0,0.01203788]
[1766552228280,0.36942,87113.0,87106.0,0.01148026]
[1766552228479,0.01148,87115.0,87085.0,0.22966043]
[1766552228480,0.01148066,87103.0,87085.0,0.22966043]
[1766552228687,0.38090118,87099.0,87089.0,0.0114825]
[1766552228885,0.00035733,87103.0,87100.0,0.01148105]
[1766552229087,0.06943565,87112.0,87104.0,0.36758]
[1766552229088,0.01147973,87110.0,87104.0,0.36758]
[1766552229309,0.01147987,87109.0,87104.0,0.36763736]
[1766552229510,0.01147973,87110.0,87104.0,0.36763736]
[1766552229717,0.0114796,87111.0,87110.0,0.000192]
[1766552229941,0.01147947,87112.0,87110.0,0.000192]
[1766552230135,0.01148013,87107.0,87104.0,5.736e-05]
[1766552231329,0.06887613,87113.0,87105.0,0.36758]
[1766552231524,0.01147881,87117.0,87113.0,0.00055]
[1766552231931,0.01147881,87117.0,87109.0,0.36758]
[1766552232411,0.01152,87123.0,87113.0,0.37905934]
[1766552232752,0.05738551,87130.0,87119.0,0.36758]
[1766552233076,0.01147723,87129.0,87121.0,0.36758]
[1766552233296,0.01147697,87131.0,87121.0,0.27127]
[1766552233496,0.00645877,87134.0,87124.0,0.01147789]
[1766552233761,0.0001,87139.0,87130.0,0.0114771]
[1766552233959,0.08037295,87143.0,87134.0,0.000357]
[1766552234166,0.01147552,87142.0,87134.0,0.000357]
[1766552234371,0.02299499,87146.0,87132.0,0.01147683]
[1766552234590,0.01147512,87145.0,87142.0,0.00055]
[1766552234786,0.01147512,87145.0,87136.0,0.26062]
[1766552235212,0.01147539,87143.0,87136.0,0.26067736]
[1766552235373,0.01147539,87143.0,87137.0,0.11912876]
[1766552236204,0.01147552,87142.0,87137.0,0.11912876]
[1766552236766,0.01147565,87141.0,87137.0,0.11912876]
[1766552237403,0.01147525,87144.0,87136.0,0.26067736]
[1766552237752,0.01147539,87143.0,87136.0,0.26067736]
[1766552238617,0.01147552,87142.0,87136.0,0.26067736]
[1766552241119,0.01147525,87144.0,87136.0,0.26067736]
[1766552243071,0.06885094,87145.0,87136.0,0.26067736]
[1766552243422,0.01147525,87144.0,87136.0,0.26067736]
[1766552243950,0.05737693,87144.0,87136.0,0.26067736]
[1766552244155,0.01147552,87142.0,87136.0,0.26067736]
[1766552244662,0.36942,87163.0,87143.0,0.01147539]
[1766552244858,0.0001,87152.0,87145.0,0.06885075]
[1766552245108,0.01147328,87159.0,87147.0,0.01147486]
[1766552245336,0.01147328,87159.0,87152.0,0.11912876]
[1766552245453,0.01147354,87157.0,87152.0,0.11912876]
[1766552246064,0.01147367,87156.0,87152.0,0.11893676]
[1766552246463,0.01147354,87157.0,87152.0,0.11893676]
[1766552246942,0.01147341,87158.0,87152.0,0.11893676]
[1766552247144,0.01147354,87157.0,87152.0,0.11893676]
[1766552248154,0.01147341,87158.0,87152.0,0.11893676]
[1766552248469,0.01147354,87157.0,87152.0,0.11893676]
[1766552248691,0.01147341,87158.0,87152.0,0.11893676]
[1766552248846,0.34036,87156.0,87150.0,0.01147354]
[1766552249009,0.35183473,87148.0,87145.0,0.01152]
[1766552249214,0.35183473,87148.0,87145.0,0.02299565]
[1766552249466,0.34036,87148.0,87145.0,0.01152]
[1766552249667,0.34036,87148.0,87139.0,0.11015111]
[1766552249869,0.35183473,87148.0,87141.0,0.03444342]
[1766552250049,0.01147486,87147.0,87140.0,0.01152]
[1766552250244,0.01147512,87145.0,87141.0,0.01152]
[1766552250443,0.34036,87144.0,87141.0,0.01152]
[1766552250849,0.01147578,87140.0,87136.0,5.736e-05]
[1766552251051,0.01147578,87140.0,87138.0,0.11015111]
[1766552251255,0.01147565,87141.0,87138.0,1.11e-06]
[1766552251256,0.34036,87141.0,87138.0,1.11e-06]
[1766552251477,0.35183565,87141.0,87138.0,1.11e-06]
[1766552255447,0.05737661,87144.0,87132.0,0.0001]
[1766552255448,0.38144711,87137.0,87132.0,0.0001]
[1766552255604,0.32406631,87136.0,87132.0,0.0001]
[1766552256232,0.32406631,87136.0,87130.0,0.01152]
[1766552256434,0.01147697,87131.0,87128.0,0.01152]
[1766552256630,0.32406683,87132.0,87128.0,0.01152]
[1766552256834,0.31259,87132.0,87128.0,0.01152]
[1766552257036,0.312041,87132.0,87128.0,0.01152]
[1766552257766,0.30050516,87132.0,87128.0,0.02299736]
[1766552258078,0.00010718,87137.0,87128.0,0.02299736]
[1766552258379,0.06885322,87142.0,87137.0,0.000107]
[1766552258589,0.05737627,87145.0,87137.0,0.000107]
[1766552258795,0.01147512,87145.0,87142.0,0.000443]
[1766552259213,0.01147512,87145.0,87140.0,0.10099387]
[1766552259370,0.01147578,87140.0,87134.0,0.01152]
[1766552259575,0.32406578,87140.0,87134.0,0.01152]
[1766552260211,0.01147591,87139.0,87134.0,0.01152]
[1766552260710,0.31259,87140.0,87139.0,0.00055]
[1766552260911,0.01147591,87139.0,87134.0,0.01152]
[1766552261343,0.32406578,87140.0,87134.0,0.01152]
[1766552262681,0.31259,87140.0,87134.0,0.01152]
[1766552262959,0.05737522,87146.0,87134.0,0.01152]
[1766552262960,0.01162,87149.0,87140.0,0.00055]
[1766552263117,0.01147539,87143.0,87140.0,0.01207]
[1766552263301,0.01147539,87143.0,87141.0,0.10099387]
[1766552263505,0.00054513,87141.0,87132.0,0.01147683]
[1766552263758,0.36996896,87140.0,87133.0,0.01152]
[1766552264091,0.32406578,87140.0,87133.0,0.01152]
[1766552264282,0.31259,87140.0,87134.0,0.09180998]
[1766552264487,0.32406578,87140.0,87134.0,0.09180998]
[1766552264913,0.31259,87140.0,87134.0,0.09180998]
[1766552265325,0.01152,87148.0,87131.0,0.0001]
[1766552265326,0.000545,87134.0,87131.0,0.0001]
[1766552265516,0.000545,87134.0,87133.0,0.01152]
[1766552265721,0.32406618,87137.0,87133.0,0.01152]
[1766552265861,0.31259,87137.0,87133.0,0.01152]
[1766552272468,0.31259,87137.0,87133.0,0.0229967]
[1766552272640,0.32406512,87145.0,87134.0,0.01147657]
[1766552272998,0.32406512,87145.0,87135.0,0.01147644]
[1766552273300,0.31259,87145.0,87137.0,0.01147618]
[1766552273499,0.01147446,87150.0,87145.0,0.000554]
[1766552273710,0.0114746,87149.0,87141.0,0.01152]
[1766552273914,0.01152,87153.0,87144.0,0.0826304]
[1766552274110,0.01147433,87151.0,87144.0,0.0826304]
[1766552274507,0.0114742,87152.0,87144.0,0.0826304]
[1766552274710,0.02299407,87153.0,87144.0,0.0826304]
[1766552275534,0.0114742,87152.0,87144.0,0.0826304]
[1766552275914,0.01147394,87154.0,87144.0,0.01147525]
[1766552276140,0.01147381,87155.0,87142.0,0.01147552]
[1766552276339,0.01147341,87158.0,87154.0,0.000554]
[1766552276514,0.02299328,87159.0,87149.0,0.01109296]
[1766552276901,0.01147341,87158.0,87148.0,0.02299473]
[1766552277316,0.01147341,87158.0,87148.0,0.01152]
[1766552277512,0.02299328,87159.0,87148.0,0.01152]
[1766552277877,0.32406302,87161.0,87149.0,0.0114746]
[1766552278103,0.32406302,87161.0,87150.0,0.01147446]
[1766552278828,0.31259,87161.0,87152.0,0.0114742]
[1766552279026,0.32406302,87161.0,87151.0,0.01147433]
[1766552279658,0.01147315,87160.0,87150.0,0.01147446]
[1766552279873,0.01147315,87160.0,87149.0,0.0114746]
[1766552280082,0.01147315,87160.0,87150.0,0.01147446]
[1766552281214,0.32406302,87161.0,87150.0,0.01147446]
[1766552281426,0.01147315,87160.0,87149.0,0.0114746]
[1766552281613,0.01147315,87160.0,87150.0,0.01147446]
[1766552282010,0.32406302,87161.0,87150.0,0.01147446]
[1766552282213,0.32406302,87161.0,87152.0,0.0114742]
[1766552282406,0.31259,87161.0,87152.0,0.0114742]
[1766552282973,0.32406302,87161.0,87151.0,0.01147433]
[1766552283182,0.31259,87161.0,87152.0,0.0114742]
[1766552283605,0.06888501,87163.0,87152.0,0.0114742]
[1766552283606,0.01152,87163.0,87152.0,0.0114742]
[1766552283810,0.01152,87163.0,87157.0,0.01147354]
[1766552284008,0.0001,87164.0,87157.0,0.01147354]
[1766552284233,0.00020726,87164.0,87159.0,0.01147328]
[1766552284415,0.00020726,87164.0,87159.0,0.01152]
[1766552284820,0.00020726,87164.0,87160.0,0.01147315]
[1766552285688,0.00020726,87164.0,87159.0,0.01152]
[1766552287257,0.01167988,87164.0,87160.0,0.00556007]
[1766552287487,0.06883676,87163.0,87155.0,0.01152]
[1766552287704,0.01147275,87163.0,87156.0,0.01152]
[1766552288437,0.01167988,87164.0,87156.0,0.01152]
[1766552288778,0.01147275,87163.0,87156.0,0.01152]
[1766552288985,0.00020726,87164.0,87156.0,0.01152]
[1766552289586,0.27999,87161.0,87156.0,0.01152]
[1766552289744,0.27999,87159.0,87152.0,0.01152]
[1766552289958,0.29146328,87159.0,87152.0,0.01152]
[1766552290470,0.27999,87159.0,87152.0,0.01152]
[1766552292296,0.27999,87159.0,87153.0,0.01147407]
[1766552292495,0.00020726,87164.0,87157.0,0.01147354]
[1766552293118,0.00020726,87164.0,87155.0,0.01147381]
[1766552293323,0.00020726,87164.0,87156.0,0.01147367]
[1766552293621,0.00020726,87164.0,87159.0,0.01147328]
[1766552293760,0.01152,87168.0,87157.0,0.01152]
[1766552294220,0.01147223,87167.0,87157.0,0.01152]
[1766552294422,0.01147236,87166.0,87157.0,0.01152]
[1766552294622,0.01147249,87165.0,87157.0,0.01062907]
[1766552294822,0.01147236,87166.0,87157.0,0.01062907]
[1766552295041,0.01147262,87164.0,87157.0,0.01062907]
[1766552295596,0.06883653,87163.0,87157.0,0.01062907]
[1766552296024,0.01147302,87161.0,87157.0,0.01062907]
[1766552296427,0.01147328,87159.0,87158.0,0.01152]
[1766552296649,0.01147328,87159.0,87158.0,0.01162726]
[1766552296878,0.01147315,87160.0,87158.0,0.01162726]